bitfinex/quotes_ETHUSD_20250708
["timestamp","ask_amount","ask_price","bid_price","bid_amount"]
[1751942639204,0.001,2533.8,2533.7,20.13855931]
[1751942641226,0.001,2533.8,2533.7,17.78777573]
[1751942641927,0.001,2533.8,2533.7,15.65358932]
[1751942642227,0.001,2533.8,2533.7,13.29097856]
[1751942643408,0.001,2533.8,2533.7,17.23777573]
[1751942643604,0.001,2533.8,2533.7,13.29097856]
[1751942644125,0.001,2533.8,2533.7,14.12423545]
[1751942644305,0.001,2533.8,2533.7,10.1968]
[1751942648899,0.001,2533.8,2533.7,0.1968]
[1751942649225,5.98945149,2533.8,2533.5,0.1968]
[1751942649415,0.001,2533.8,2533.5,0.1968]
[1751942658226,0.001,2533.8,2533.3,3.9868186]
[1751942658429,0.001,2533.8,2533.7,0.1968]
[1751942658815,0.001,2533.8,2533.7,4.18306514]
[1751942659227,0.001,2533.8,2533.7,4.73306514]
[1751942659518,0.001,2533.8,2533.7,6.37566514]
[1751942659721,0.001,2533.8,2533.7,6.33619717]
[1751942659917,0.001,2533.8,2533.7,8.96335416]
[1751942664254,0.001,2533.8,2533.7,2.82395699]
[1751942664454,0.001,2533.8,2533.7,0.1968]
[1751942685279,0.001,2533.8,2533.7,5.78259717]
[1751942686282,1.61,2533.8,2533.7,0.1968]
[1751942703796,1.61,2533.8,2533.1,1.5721]
[1751942704010,1.8068,2533.8,2533.4,0.1968]
[1751942710197,3.94688189,2533.7,2533.4,0.1968]
[1751942710397,1.5189,2533.5,2533.4,0.1968]
[1751942712023,4.14445049,2533.8,2533.4,0.1968]
[1751942712227,1.5189,2533.7,2533.4,0.1968]
[1751942713193,5.98845149,2533.6,2533.4,0.1968]
[1751942713399,9.93542153,2533.6,2533.1,0.002]
[1751942713598,9.93542153,2533.6,2533.2,0.1968]
[1751942714623,3.94711292,2533.5,2533.2,0.1968]
[1751942715002,9.93549576,2533.6,2533.2,0.1968]
[1751942715930,5.98845149,2533.6,2533.2,0.1968]
[1751942716225,1.7157,2533.7,2533.2,0.1968]
[1751942719222,1.7157,2533.7,2533.2,1.8198]
[1751942722313,0.1968,2533.7,2533.2,1.8198]
[1751942722709,0.001,2533.8,2533.2,1.623]
[1751942722931,0.1978,2533.8,2533.4,0.1968]
[1751942729067,4.14444909,2533.8,2533.4,0.1968]
[1751942729229,9.9353461,2533.7,2533.4,0.1968]
[1751942729617,5.98845149,2533.7,2533.1,0.002]
[1751942729940,1.8137,2533.6,2533.1,0.1988]
[1751942730348,5.76066764,2533.6,2533.1,0.1988]
[1751942730665,1.8137,2533.6,2533.1,0.1988]
[1751942733362,5.76068294,2533.6,2533.1,0.1988]
[1751942733660,3.94712557,2533.5,2533.1,0.1988]
[1751942734241,5.7607251,2533.6,2533.1,0.1988]
[1751942734466,1.8137,2533.6,2533.1,0.1988]
[1751942736575,0.1968,2533.6,2533.2,1.6026]
[1751942737062,5.54722307,2533.8,2533.2,1.6026]
[1751942737063,1.7973,2533.8,2533.4,0.1968]
[1751942737264,0.32609251,2533.7,2533.4,0.1968]
[1751942738765,1.74793813,2533.7,2533.4,0.1968]
[1751942739074,1.7973,2533.8,2533.4,0.1968]
[1751942739235,0.32612692,2533.7,2533.4,0.1968]
[1751942739533,1.74797863,2533.7,2533.4,0.1968]
[1751942739733,1.42185171,2533.7,2533.4,0.1968]
[1751942739929,3.21915171,2533.8,2533.4,0.1968]
[1751942740245,0.32977437,2533.7,2533.4,0.1968]
[1751942740446,1.75162608,2533.7,2533.4,0.1968]
[1751942740656,1.42185171,2533.7,2533.4,0.1968]
[1751942740858,7.16579454,2533.8,2533.4,0.1968]
[1751942741057,1.75167446,2533.7,2533.4,0.1968]
[1751942741364,1.42185171,2533.7,2533.4,0.1968]
[1751942741768,5.36867954,2533.7,2533.4,0.1968]
[1751942741978,0.32984605,2533.6,2533.4,0.1968]
[1751942742340,4.27686651,2533.6,2533.1,0.002]
[1751942742538,4.14382046,2533.6,2533.2,0.1968]
[1751942742960,1.6039,2533.5,2533.2,0.1968]
[1751942744269,7.59235149,2533.5,2533.2,0.1968]
[1751942744435,3.94729091,2533.4,2533.2,0.1968]
[1751942744643,3.94729091,2533.4,2533.1,0.002]
[1751942744644,5.98845149,2533.3,2533.1,0.002]
[1751942744843,0.1968,2533.2,2533.1,0.002]
[1751942747653,11.53951357,2533.5,2533.1,0.002]
[1751942747654,0.1968,2533.4,2533.1,0.002]
[1751942748582,0.1968,2533.4,2532.4,0.002]
[1751942748583,1.5019,2533.3,2532.4,0.002]
[1751942748781,1.5019,2533.3,2531.1,0.5431908]
[1751942748782,0.1968,2532.5,2532.1,0.002]
[1751942748990,0.03948216,2532.4,2532.1,0.002]
[1751942749184,0.1968,2532.3,2532.1,0.002]
[1751942750084,3.94913513,2532.2,2532.1,0.002]
[1751942750285,9.93758662,2532.2,2532.1,0.002]
[1751942750989,11.35580004,2532.2,2532.1,0.002]
[1751942751191,9.93758662,2532.2,2532.1,0.002]
[1751942751565,11.35426487,2532.2,2532.1,0.002]
[1751942751771,11.72329612,2532.2,2532.1,0.002]
[1751942752367,10.30661787,2532.2,2532.1,0.002]
[1751942753760,0.36903125,2532.2,2532.1,0.002]
[1751942753965,1.6226,2532.3,2532.1,0.002]
[1751942754166,3.43150258,2533.0,2532.2,1.5664]
[1751942754499,4.68455273,2532.9,2532.2,1.5664]
[1751942754698,0.03948216,2532.9,2532.2,1.5664]
[1751942754894,0.36819493,2532.8,2532.2,1.5664]
[1751942755194,5.90707549,2533.0,2532.3,0.03948979]
[1751942755377,4.3162338,2532.9,2532.3,0.03948979]
[1751942755578,0.36817288,2532.8,2532.3,0.03948979]
[1751942755780,3.98754888,2532.9,2532.3,0.03948979]
[1751942755971,0.36817844,2532.8,2532.2,1.5664]
[1751942756372,3.98754888,2532.9,2532.2,1.5664]
[1751942756887,3.94823846,2532.8,2532.2,1.5664]
[1751942757488,3.94852231,2532.6,2532.2,1.5664]
[1751942758509,3.98789436,2532.7,2532.2,1.5664]
[1751942759002,3.94859768,2532.6,2532.2,1.5664]
[1751942759179,3.98829297,2532.5,2532.2,1.5664]
[1751942759572,0.03948216,2532.5,2532.2,1.5664]
[1751942759791,3.94905123,2532.3,2532.1,0.002]
[1751942760107,3.98853339,2532.3,2532.1,0.002]
[1751942761001,9.93758662,2532.2,2532.1,0.002]
[1751942761880,11.3517045,2532.2,2532.1,0.002]
[1751942762090,11.88920132,2532.2,2532.1,0.002]
[1751942762713,11.88906262,2532.2,2532.1,0.002]
[1751942763273,11.52098662,2532.2,2532.1,0.002]
[1751942764873,1.77580258,2532.6,2532.1,0.002]
[1751942765076,0.1968,2532.2,2532.1,0.002]
[1751942765402,0.03948216,2532.3,2532.1,0.002]
[1751942774511,3.98847102,2532.3,2532.1,0.002]
[1751942774917,4.44913513,2532.2,2532.1,0.002]
[1751942775227,3.98856737,2532.3,2532.1,0.002]
[1751942775520,0.1968,2532.2,2532.1,0.002]
[1751942775725,11.70748662,2532.2,2532.1,0.002]
[1751942775932,12.44557205,2532.2,2532.1,0.002]
[1751942776525,13.86330061,2532.2,2532.1,0.002]
[1751942778725,13.49426283,2532.2,2532.1,0.002]
[1751942778904,13.12521518,2532.2,2532.1,0.002]
[1751942780635,13.62521518,2532.2,2532.1,0.002]
[1751942784227,7.63676369,2532.2,2532.1,0.002]
[1751942784540,7.13676369,2532.2,2532.1,0.002]
[1751942784948,1.61452856,2532.2,2532.1,0.002]
[1751942785948,5.56366369,2532.2,2532.1,0.002]
[1751942786538,5.93359441,2532.2,2532.1,0.002]
[1751942786846,6.30352512,2532.2,2532.1,0.002]
[1751942788325,8.0793277,2532.2,2532.1,0.002]
[1751942789446,14.06777919,2532.2,2532.1,0.002]
[1751942790249,14.56777919,2532.2,2532.1,0.002]
[1751942791163,8.5793277,2532.2,2532.1,0.002]
[1751942791858,8.58011728,2532.2,2532.1,0.002]
[1751942794858,4.63106254,2532.2,2532.1,0.002]
[1751942795225,4.6705447,2532.2,2532.1,0.002]
[1751942795423,6.84387725,2532.2,2532.1,0.002]
[1751942795630,14.60813132,2532.2,2532.1,0.002]
[1751942795823,13.92004658,2532.2,2532.1,0.002]
[1751942796255,16.27640959,2532.2,2532.1,0.002]
[1751942796652,24.47004658,2532.2,2532.1,0.002]
[1751942796961,28.0045911,2532.2,2532.1,0.002]
[1751942797857,24.47004658,2532.2,2532.1,0.002]
[1751942798265,28.02481467,2532.2,2532.1,0.002]
[1751942798562,17.93159509,2532.2,2532.1,0.002]
[1751942798864,18.67390184,2532.2,2532.1,0.002]
[1751942799066,16.30439509,2532.2,2532.1,0.002]
[1751942799636,12.35525996,2532.2,2532.1,0.002]
[1751942800272,2.35525996,2532.2,2532.1,0.002]
[1751942800429,4.13226878,2532.2,2532.1,0.002]
[1751942800766,4.13210834,2532.2,2532.1,0.002]
[1751942801270,8.08124347,2532.2,2532.1,0.002]
[1751942802039,6.30423465,2532.2,2532.1,0.002]
[1751942802240,6.34371681,2532.2,2532.1,0.002]
[1751942802555,8.10368126,2532.2,2532.1,0.002]
[1751942802871,4.11506397,2532.2,2532.1,0.002]
[1751942803162,8.10368126,2532.2,2532.1,0.002]
[1751942803364,8.0641991,2532.2,2532.1,0.002]
[1751942803768,8.06421342,2532.2,2532.1,0.002]
[1751942804647,4.11507829,2532.2,2532.1,0.002]
[1751942804846,4.15456045,2532.2,2532.1,0.002]
[1751942805365,2.33785777,2532.2,2532.1,0.002]
[1751942805546,4.11507829,2532.2,2532.1,0.002]
[1751942805747,2.33785777,2532.2,2532.1,0.002]
[1751942806739,2.3338306,2532.2,2532.1,0.002]
[1751942808880,6.28296573,2532.2,2532.1,0.002]
[1751942809091,8.06018625,2532.2,2532.1,0.002]
[1751942809445,19.56278625,2532.2,2532.1,0.002]
[1751942809688,17.78399358,2532.2,2532.1,0.002]
[1751942810143,20.15350033,2532.2,2532.1,0.002]
[1751942810349,12.33225845,2532.2,2532.1,0.002]
[1751942810680,16.28139358,2532.2,2532.1,0.002]
[1751942811047,12.33225845,2532.2,2532.1,0.002]
[1751942812184,2.33225845,2532.2,2532.1,0.002]
[1751942812545,2.32455085,2532.2,2532.1,1.5355]
[1751942813278,1.984934,2532.2,2532.1,1.5355]
[1751942813682,0.56720544,2532.2,2532.1,1.5355]
[1751942813884,2.32452095,2532.2,2532.1,1.5355]
[1751942815584,2.32449987,2532.2,2532.1,1.5355]
[1751942816161,0.37040544,2532.2,2532.1,1.7323]
[1751942816801,1.42234826,2532.4,2532.2,1.6197]
[1751942816802,0.001,2532.4,2532.2,1.6197]
[1751942817153,0.37018737,2532.3,2532.2,1.6197]
[1751942817355,0.37007339,2532.3,2532.2,1.6197]
[1751942817560,0.001,2532.4,2532.2,1.6197]
[1751942817789,0.001,2532.4,2532.2,2.19668599]
[1751942818673,0.001,2532.4,2532.2,1.6197]
[1751942824168,0.3704372,2532.4,2532.2,1.6197]
[1751942824370,0.001,2532.4,2532.2,1.6197]
[1751942825095,0.37042411,2532.4,2532.2,1.6197]
[1751942825394,0.001,2532.4,2532.1,0.002]
[1751942825892,0.37039945,2532.4,2532.1,0.002]
[1751942826712,0.001,2532.4,2532.1,0.002]
[1751942829170,0.001,2532.4,2532.2,0.1968]
[1751942833095,0.001,2532.4,2532.3,1.5089]
[1751942833264,0.001,2532.4,2532.3,5.45787918]
[1751942833468,0.001,2532.4,2532.3,1.5089]
[1751942833870,0.001,2532.4,2532.3,1.54838979]
[1751942834871,0.001,2532.4,2532.3,1.5089]
[1751942835108,0.001,2532.4,2532.3,3.07459091]
[1751942839780,0.001,2532.4,2532.3,1.56569091]
[1751942839979,0.001,2532.4,2532.2,0.1968]
[1751942841190,0.04048216,2532.4,2532.2,0.1968]
[1751942841479,1.66818216,2532.4,2532.1,0.002]
[1751942842406,0.36989106,2532.3,2532.1,0.002]
[1751942842917,0.40941259,2532.2,2532.1,0.002]
[1751942845107,0.36993043,2532.2,2532.1,0.002]
[1751942845309,0.36993043,2532.2,2532.1,1.5046]
[1751942845816,0.001,2532.4,2532.1,1.7014]
[1751942845993,0.37008279,2532.3,2532.1,1.7014]
[1751942846193,0.37008279,2532.2,2532.1,1.7014]
[1751942847289,0.37012984,2532.2,2532.1,1.7014]
[1751942847611,0.37012984,2532.2,2532.1,0.1988]
[1751942848012,0.37012984,2532.2,2532.1,0.002]
[1751942848204,0.409612,2532.2,2532.1,0.002]
[1751942848589,0.03948216,2532.2,2532.1,0.002]
[1751942849218,1.69038216,2532.3,2532.1,0.002]
[1751942849414,3.11174971,2532.3,2532.1,0.002]
[1751942851018,0.34553546,2532.2,2532.1,0.002]
[1751942851188,11.62784064,2532.3,2532.1,0.002]
[1751942851389,0.56688716,2532.2,2532.1,0.002]
[1751942851623,0.60636932,2532.2,2532.1,0.002]
[1751942852425,7.4969449,2532.2,2532.1,0.002]
[1751942852722,20.15289916,2532.2,2532.1,0.002]
[1751942852923,20.70531332,2532.2,2532.1,0.002]
[1751942853088,22.10864259,2532.1,2532.0,0.002]
[1751942853430,23.67790387,2532.1,2532.0,0.002]
[1751942853718,23.34956004,2532.1,2532.0,0.002]
[1751942855220,24.20292274,2532.1,2532.0,0.002]
[1751942855996,24.53086686,2532.1,2532.0,0.002]
[1751942858323,26.30229215,2532.1,2532.0,0.002]
[1751942858908,24.20292274,2532.1,2532.0,0.002]
[1751942859108,24.53663831,2532.1,2532.0,0.002]
[1751942859421,15.49101507,2531.7,2531.6,0.0431908]
[1751942859601,23.60404164,2531.7,2531.6,0.0431908]
[1751942860222,23.27038401,2531.7,2531.6,0.0431908]
[1751942860602,22.90020701,2531.7,2531.6,0.0431908]
[1751942860804,23.26893948,2531.7,2531.6,0.0431908]
[1751942863297,23.60727146,2531.7,2531.6,0.0431908]
[1751942864417,23.26893948,2531.7,2531.6,0.0431908]
[1751942864797,23.268676,2531.7,2531.6,0.0431908]
[1751942868840,11.78920944,2531.7,2531.6,0.0431908]
[1751942869023,15.73912451,2531.7,2531.6,0.0431908]
[1751942869641,21.727576,2531.7,2531.6,0.0431908]
[1751942870707,22.06860025,2531.7,2531.6,0.0431908]
[1751942871206,22.06343866,2531.7,2531.6,0.0431908]
[1751942872299,22.61343866,2531.7,2531.6,0.0431908]
[1751942872531,24.25973866,2531.7,2531.6,0.0431908]
[1751942873041,26.02921223,2531.7,2531.6,0.0431908]
[1751942876437,26.0295508,2531.7,2531.6,0.0431908]
[1751942878329,24.86546904,2531.7,2531.6,0.0431908]
[1751942878531,26.34146904,2531.7,2531.6,0.0431908]
[1751942879125,28.70788855,2531.7,2531.6,0.0431908]
[1751942880341,26.34146904,2531.7,2531.6,0.0431908]
[1751942880513,26.34146904,2531.7,2531.5,0.002]
[1751942880514,4.6968711,2531.6,2531.5,0.002]
[1751942880714,8.50505574,2531.6,2531.5,0.002]
[1751942880937,8.46557358,2531.6,2531.5,0.002]
[1751942881438,3.95069532,2531.2,2531.1,0.0451908]
[1751942881638,26.12546129,2531.2,2531.1,0.0451908]
[1751942881842,26.08597913,2531.2,2531.1,0.0451908]
[1751942882348,3.95147587,2530.7,2530.6,0.0431908]
[1751942882554,8.71925397,2530.7,2530.6,0.0431908]
[1751942882859,6.3412541,2530.7,2530.6,0.0431908]
[1751942884215,6.68128964,2530.7,2530.6,0.0431908]
[1751942884541,2.72981377,2530.7,2530.6,0.0431908]
[1751942884937,2.38977823,2530.7,2530.6,1.6522908]
[1751942885136,1.98357823,2530.7,2530.6,1.6522908]
[1751942885327,1.16860756,2530.7,2530.6,1.6522908]
[1751942885528,0.56560756,2530.7,2530.6,1.6522908]
[1751942885746,1.16860756,2530.7,2530.6,1.6522908]
[1751942886052,0.56560756,2530.7,2530.6,1.6522908]
[1751942886242,0.603,2530.8,2530.6,1.6522908]
[1751942886766,0.64248216,2530.8,2530.6,1.6522908]
[1751942886948,0.36976546,2530.7,2530.6,1.6522908]
[1751942888020,0.603,2531.4,2530.7,1.6045]
[1751942888228,0.36965929,2531.3,2530.9,1.6045]
[1751942888436,0.603,2531.5,2530.8,4.51124691]
[1751942888437,0.603,2531.5,2531.0,1.6045]
[1751942888661,0.36964688,2531.4,2530.9,1.6045]
[1751942888825,1.41978313,2531.7,2531.3,5.5549667]
[1751942889143,0.36961345,2531.6,2531.3,5.55500371]
[1751942889346,0.604,2532.0,2531.6,1.6045]
[1751942889530,0.36950113,2531.9,2531.6,1.6045]
[1751942890354,0.001,2532.0,2531.6,1.6045]
[1751942890550,0.37034006,2532.0,2531.6,1.6045]
[1751942890862,0.001,2532.0,2531.7,5.55427168]
[1751942891062,0.001,2532.0,2531.8,1.64399759]
[1751942891360,0.001,2532.0,2531.8,1.6045]
[1751942892357,0.001,2532.0,2531.8,5.55425847]
[1751942892758,0.001,2532.0,2531.8,1.6045]
[1751942893356,0.001,2532.0,2531.8,2.25538625]
[1751942893554,0.001,2532.0,2531.8,1.6045]
[1751942894541,0.001,2532.0,2531.9,3.94960306]
[1751942895592,0.001,2532.0,2531.9,5.49360306]
[1751942897985,0.001,2532.0,2531.9,5.69040306]
[1751942898486,0.001,2532.0,2531.9,1.7408]
[1751942898689,0.001,2532.0,2531.9,6.65443618]
[1751942899456,0.001,2532.0,2531.9,2.70483312]
[1751942899657,0.001,2532.0,2531.9,1.7408]
[1751942900372,0.001,2532.0,2531.9,0.1968]
[1751942900582,0.001,2532.0,2531.7,1.7088]
[1751942902780,0.001,2532.0,2531.7,0.1968]
[1751942903501,0.001,2532.0,2531.3,0.1968]
[1751942903502,5.98945149,2532.0,2531.3,0.1968]
[1751942903661,6.18525149,2531.8,2531.3,0.1968]
[1751942903859,0.03948216,2531.7,2531.3,0.1968]
[1751942908903,0.1968,2531.8,2531.3,0.1968]
[1751942911911,1.5199,2531.6,2531.3,0.1968]
[1751942912282,0.03948216,2531.5,2531.1,1.6592]
[1751942912486,0.03948216,2531.5,2531.1,1.856]
[1751942912685,0.03948216,2531.5,2531.1,0.1968]
[1751942913782,0.03948216,2531.5,2531.0,0.002]
[1751942914101,0.23628216,2531.5,2531.0,0.1988]
[1751942918295,0.1968,2531.5,2531.0,0.1988]
[1751942918810,1.5116,2531.8,2531.0,0.04151007]
[1751942919119,2.079,2531.9,2531.3,1.5136]
[1751942919280,0.1968,2531.8,2531.4,0.1968]
[1751942919474,0.23628216,2531.8,2531.4,0.1968]
[1751942920788,4.18606338,2531.8,2531.4,0.1968]
[1751942921278,1.507,2531.7,2531.1,1.5136]
[1751942921484,0.23628216,2531.6,2531.2,0.1968]
[1751942923113,1.507,2531.4,2531.0,0.002]
[1751942923314,0.1968,2531.2,2531.0,0.002]
[1751942923482,0.03948216,2531.1,2531.0,0.002]
[1751942924006,0.1968,2531.2,2531.0,0.002]
[1751942926086,4.18699254,2531.2,2531.0,0.002]
[1751942926915,0.1968,2531.2,2531.0,0.002]
[1751942928015,4.7501426,2531.5,2531.1,0.1968]
[1751942928211,3.95054921,2531.3,2531.1,0.1968]
[1751942928512,0.03948216,2531.4,2531.0,0.002]
[1751942928513,0.03948216,2531.2,2531.0,0.002]
[1751942928702,0.03948216,2531.3,2531.0,0.002]
[1751942929104,3.99006292,2531.3,2531.0,0.002]
[1751942929418,3.9508514,2531.1,2531.0,0.002]
[1751942929614,3.99033356,2531.1,2531.0,0.002]
[1751942929803,4.18713356,2531.1,2531.0,0.002]
[1751942930220,4.55697366,2531.1,2531.0,0.002]
[1751942930405,5.976907,2531.1,2531.0,0.002]
[1751942931328,15.976907,2531.1,2531.0,1e-08]
[1751942931623,28.28623652,2531.1,2531.0,1e-08]
[1751942932512,26.51389041,2531.1,2531.0,1e-08]
[1751942932714,28.2873156,2531.1,2531.0,1e-08]
[1751942934087,26.51389041,2531.1,2531.0,1e-08]
[1751942934405,28.28713324,2531.1,2531.0,1e-08]
[1751942936033,26.51389041,2531.1,2531.0,1e-08]
[1751942936733,22.29705969,2531.1,2531.0,1e-08]
[1751942937196,20.52543892,2531.1,2531.0,1e-08]
[1751942937521,100.52543892,2531.1,2531.0,1e-08]
[1751942938900,98.44643892,2531.1,2531.0,1e-08]
[1751942939101,100.52200927,2531.1,2531.0,1e-08]
[1751942940923,100.52687316,2531.1,2531.0,1e-08]
[1751942941308,102.29769025,2531.1,2531.0,1e-08]
[1751942942993,101.98796226,2531.1,2531.0,1e-08]
[1751942943219,100.22033171,2531.1,2531.0,1e-08]
[1751942943829,98.44951462,2531.1,2531.0,1e-08]
[1751942944415,100.21714517,2531.1,2531.0,1e-08]
[1751942944735,85.93414517,2531.1,2531.0,1e-08]
[1751942944935,80.1968,2531.1,2531.0,1e-08]
[1751942945095,86.16662692,2531.1,2531.0,1e-08]
[1751942945293,84.7506514,2531.1,2531.0,1e-08]
[1751942946129,86.16666638,2531.1,2531.0,1e-08]
[1751942946834,86.53543011,2531.1,2531.0,1e-08]
[1751942948105,92.5238816,2531.1,2531.0,1e-08]
[1751942948309,91.10786662,2531.1,2531.0,1e-08]
[1751942948505,92.52434516,2531.1,2531.0,1e-08]
[1751942948826,104.95735296,2531.1,2531.0,1e-08]
[1751942951613,104.40735296,2531.1,2531.0,1e-08]
[1751942951874,97.81618611,2531.1,2531.0,1e-08]
[1751942952000,96.53689367,2531.1,2531.0,1e-08]
[1751942952428,96.85227204,2531.1,2531.0,1e-08]
[1751942952733,98.09079367,2531.1,2531.0,1e-08]
[1751942953507,98.09146631,2531.1,2531.0,1e-08]
[1751942956212,98.40712061,2531.1,2531.0,1e-08]
[1751942957444,104.3955721,2531.1,2531.0,1e-08]
[1751942957642,106.71638919,2531.1,2531.0,1e-08]
[1751942957950,101.6539377,2531.1,2531.0,1e-08]
[1751942959256,99.88312061,2531.1,2531.0,1e-08]
[1751942959455,106.4215721,2531.1,2531.0,1e-08]
[1751942961136,108.79009195,2531.1,2531.0,1e-08]
[1751942961441,106.4215721,2531.1,2531.0,1e-08]
[1751942961642,98.32922061,2531.1,2531.0,1e-08]
[1751942961948,105.8373721,2531.1,2531.0,1e-08]
[1751942962148,106.18290756,2531.1,2531.0,1e-08]
[1751942962338,105.8373721,2531.1,2531.0,1e-08]
[1751942962650,106.3873721,2531.1,2531.0,1e-08]
[1751942963915,102.7700103,2531.1,2531.0,1e-08]
[1751942964117,108.75846179,2531.1,2531.0,1e-08]
[1751942964313,106.3873721,2531.1,2531.0,1e-08]
[1751942965060,100.39892061,2531.1,2531.0,1e-08]
[1751942965229,99.84892061,2531.1,2531.0,1e-08]
[1751942965433,102.22007158,2531.1,2531.0,1e-08]
[1751942966558,108.20852307,2531.1,2531.0,1e-08]
[1751942967559,108.20952307,2531.1,2531.0,1e-08]
[1751942968327,106.12952307,2531.1,2531.0,1e-08]
[1751942968556,108.21052307,2531.1,2531.0,1e-08]
[1751942969359,100.70237158,2531.1,2531.0,1e-08]
[1751942969519,100.38671728,2531.1,2531.0,1e-08]
[1751942969720,88.62247685,2531.1,2531.0,1.57920001]
[1751942969925,81.78691491,2531.1,2531.0,1.57920001]
[1751942970237,80.37043637,2531.1,2531.0,1.57920001]
[1751942970838,84.92628777,2531.1,2531.0,1e-08]
[1751942971037,84.92628777,2531.1,2530.7,1.5792]
[1751942971038,3.95147587,2530.7,2530.6,0.0431908]
[1751942971249,4.92639136,2530.7,2530.6,0.0431908]
[1751942971663,4.32139136,2530.7,2530.6,0.0431908]
[1751942971835,6.38896146,2530.7,2530.6,0.0431908]
[1751942972031,5.78196146,2530.7,2530.6,0.0431908]
[1751942972250,6.7339579,2530.7,2530.6,0.0431908]
[1751942972971,8.1656971,2530.7,2530.6,0.0431908]
[1751942973270,3.95225673,2530.2,2530.1,0.0431908]
[1751942973568,6.38974232,2530.2,2530.1,0.0431908]
[1751942974145,6.01982683,2530.2,2530.1,0.0431908]
[1751942974345,2.02808794,2530.2,2530.1,0.0431908]
[1751942974658,4.55925673,2530.2,2530.1,0.0431908]
[1751942975167,3.99165923,2530.3,2530.1,0.0431908]
[1751942975375,0.607,2530.2,2530.1,0.0431908]
[1751942975676,5.97931659,2530.2,2530.1,0.0431908]
[1751942975880,6.34922059,2530.2,2530.1,0.0431908]
[1751942976067,6.38870275,2530.2,2530.1,0.0431908]
[1751942976439,6.73720341,2530.2,2530.1,0.0431908]
[1751942977381,4.96864289,2530.2,2530.1,0.0431908]
[1751942977594,5.28243978,2530.2,2530.1,0.0431908]
[1751942977867,16.7412974,2530.2,2530.1,0.0431908]
[1751942978085,16.70181524,2530.2,2530.1,0.0431908]
[1751942978960,20.60016621,2530.2,2530.1,1e-08]
[1751942979257,18.22901524,2530.2,2530.1,1e-08]
[1751942979453,18.22901524,2530.2,2529.5,1.6492]
[1751942979454,5.6094379,2529.7,2529.1,1.6082908]
[1751942979683,24.34701902,2529.7,2529.1,1.6082908]
[1751942979979,16.70216753,2529.7,2529.1,1.6082908]
[1751942980473,16.09516753,2529.7,2529.1,1.6082908]
[1751942980673,16.70216753,2529.7,2529.5,1.5991]
[1751942980857,14.9299419,2529.7,2529.5,1.5991]
[1751942981442,10.976904,2529.7,2529.5,1.5991]
[1751942981648,15.1275419,2529.7,2529.5,1.5991]
[1751942983345,21.11599339,2529.7,2529.3,1.5941]
[1751942983562,21.46868831,2529.7,2529.1,1.6372908]
[1751942983849,21.11599339,2529.7,2529.1,1.6372908]
[1751942984052,22.88363715,2529.7,2529.1,1.6372908]
[1751942984398,21.11599339,2529.7,2529.1,1.6372908]
[1751942984542,21.46852287,2529.7,2529.1,1.6372908]
[1751942984743,16.8943638,2529.7,2529.1,1.6372908]
[1751942985775,16.2873638,2529.7,2529.1,1.6372908]
[1751942985971,15.1275419,2529.7,2529.1,1.6372908]
[1751942987050,11.174504,2529.7,2529.1,1.6372908]
[1751942987254,11.17271505,2529.7,2529.1,1.6372908]
[1751942987681,14.51875295,2529.7,2529.5,1.6035]
[1751942987882,0.1976,2529.7,2529.5,1.6035]
[1751942988074,0.8046,2529.7,2529.5,1.6035]
[1751942988982,0.607,2529.7,2529.5,1.6035]
[1751942989168,0.607,2529.8,2529.7,1.5384]
[1751942989493,0.84408216,2530.0,2529.7,1.5384]
[1751942989655,3.95288165,2529.8,2529.6,0.0431908]
[1751942989854,0.03948216,2529.7,2529.6,0.0431908]
[1751942990470,0.607,2529.8,2529.6,0.0431908]
[1751942990864,3.9530379,2529.7,2529.6,0.0431908]
[1751942991064,4.19012006,2529.7,2529.6,0.0431908]
[1751942991669,0.23708216,2529.7,2529.6,0.0431908]
[1751942992478,0.1976,2529.7,2529.6,0.0431908]
[1751942992953,0.23708216,2529.7,2529.6,0.0431908]
[1751942993156,0.1976,2529.7,2529.6,0.0431908]
[1751942999683,4.1506379,2529.7,2529.6,0.0431908]
[1751943000581,0.1976,2529.7,2529.6,0.0431908]
[1751943002198,0.606,2529.9,2529.6,0.0431908]
[1751943002391,0.36925751,2529.8,2529.6,0.0431908]
[1751943004679,4.32215654,2529.8,2529.6,0.0431908]
[1751943004881,3.95289903,2529.8,2529.6,0.0431908]
[1751943005603,4.18989592,2529.9,2529.6,0.0431908]
[1751943005763,0.3695659,2529.8,2529.6,0.0431908]
[1751943005963,4.32250022,2529.8,2529.6,0.0431908]
[1751943006167,3.95293432,2529.8,2529.6,0.0431908]
[1751943006405,0.36968878,2529.7,2529.6,0.0431908]
[1751943006605,0.36968878,2529.8,2529.6,0.0431908]
[1751943006770,0.36967308,2529.7,2529.6,0.0431908]
[1751943006969,4.32257159,2529.8,2529.6,0.0431908]
[1751943007169,0.36967308,2529.7,2529.6,0.0431908]
[1751943007777,0.36967308,2529.8,2529.6,0.0431908]
[1751943008092,0.36967308,2529.7,2529.6,0.0431908]
[1751943009906,0.36967308,2529.8,2529.6,0.0431908]
[1751943010112,1.5115,2529.5,2529.1,0.0431908]
[1751943010309,12.00377087,2529.2,2529.1,0.0431908]
[1751943010513,14.13257884,2529.2,2529.1,0.0431908]
[1751943010714,9.95663359,2529.2,2529.1,0.0431908]
[1751943010888,7.59412735,2529.2,2529.1,0.0431908]
[1751943011209,17.59412735,2529.2,2529.1,0.0431908]
[1751943011409,6.08262735,2529.2,2529.1,0.0431908]
[1751943011613,2.73880797,2529.2,2529.1,0.0431908]
[1751943011814,6.69262735,2529.2,2529.1,0.0431908]
[1751943012309,4.66351076,2529.2,2529.1,0.0431908]
[1751943012513,6.08073417,2529.2,2529.1,0.0431908]
[1751943012816,4.66351076,2529.2,2529.1,0.0431908]
[1751943013514,0.70969138,2529.2,2529.1,0.0431908]
[1751943013717,0.7380874,2529.2,2529.1,0.0431908]
[1751943014706,3.95339706,2529.5,2529.1,0.0431908]